bitfinex-derivatives/quotes_SOLF0:USTF0_20241231
["timestamp","ask_amount","ask_price","bid_price","bid_amount"]
[1735628815138,10.78965713,189.66,189.61,1.5551]
[1735628816442,10.78965713,189.66,189.63,2.6404]
[1735628816742,7.70965713,189.64,189.58,14.9525038]
[1735628817139,7.70965713,189.64,189.58,7.24284667]
[1735628817743,7.70965713,189.64,189.6,2.6409]
[1735628817936,7.70965713,189.62,189.6,2.6409]
[1735628819938,7.70965713,189.62,189.61,2.6408]
[1735628822252,7.70965713,189.62,189.6,2.6409]
[1735628822448,7.70965713,189.62,189.57,10.36814667]
[1735628822654,7.70965713,189.6,189.57,8.78884667]
[1735628823057,7.70965713,189.6,189.57,11.43014667]
[1735628823449,7.70965713,189.6,189.57,4.1873]
[1735628823847,7.70965713,189.6,189.57,2.6413]
[1735628824056,7.70965713,189.58,189.55,7.24284667]
[1735628824355,7.70965713,189.56,189.54,7.24284667]
[1735628825152,7.70965713,189.56,189.52,1.5116]
[1735628825558,7.70965713,189.56,189.54,2.6416]
[1735628826654,7.70965713,189.56,189.55,2.6416]
[1735628826854,7.70965713,189.58,189.52,9.22125713]
[1735628827056,7.70965713,189.58,189.52,1.5116]
[1735628827254,7.70965713,189.58,189.53,7.70965713]
[1735628827450,3.06,189.61,189.53,7.70965713]
[1735628827753,8.75475357,189.68,189.55,7.70965713]
[1735628827959,7.70965713,189.64,189.57,7.70965713]
[1735628828160,7.70965713,189.64,189.59,2.641]
[1735628828349,7.70965713,189.64,189.57,7.70965713]
[1735628828858,7.70965713,189.64,189.62,2.6405]
[1735628829057,7.70965713,189.64,189.57,7.70965713]
[1735628829256,7.70965713,189.64,189.58,3.2151]
[1735628830553,7.70965713,189.64,189.62,2.6405]
[1735628831452,3.06,189.68,189.59,7.70965713]
[1735628831661,7.70965713,189.68,189.61,7.70965713]
[1735628832957,7.70965713,189.68,189.65,2.6401]
[1735628838755,7.70965713,189.68,189.66,2.64]
[1735628839764,7.70965713,189.68,189.67,2.6399]
[1735628845065,10.86312616,189.8,189.64,7.70965713]
[1735628845370,7.70965713,189.73,189.66,7.70965713]
[1735628845573,7.70965713,189.73,189.67,1.5677]
[1735628847672,7.70965713,189.73,189.7,2.6394]
[1735628850568,7.02078059,189.79,189.67,1.5677]
[1735628850770,7.70965713,189.71,189.67,1.5677]
[1735628851068,7.70965713,189.71,189.65,3.2188]
[1735628852369,7.70965713,189.69,189.65,3.2188]
[1735628853270,7.70965713,189.69,189.65,5.8589]
[1735628853769,7.70965713,189.69,189.65,3.2188]
[1735628853974,7.70965713,189.69,189.66,2.6401]
[1735628854674,7.70965713,189.71,189.68,2.6398]
[1735628854875,7.70965713,189.71,189.65,3.2188]
[1735628855876,10.34905713,189.71,189.66,2.6399]
[1735628857176,10.34905713,189.71,189.67,2.6399]
[1735628857475,7.70965713,189.71,189.65,3.2188]
[1735628858579,7.70965713,189.71,189.68,2.6397]
[1735628859973,7.70965713,189.71,189.69,2.6396]
[1735628861777,2.6395,189.7,189.66,2.64]
[1735628861980,3.06,189.74,189.66,2.64]
[1735628861981,7.70965713,189.69,189.66,2.64]
[1735628862676,7.70965713,189.71,189.65,3.2188]
[1735628863084,7.70965713,189.73,189.66,7.70965713]
[1735628864181,7.70965713,189.73,189.68,2.6398]
[1735628864380,7.70965713,189.73,189.66,7.70965713]
[1735628865479,7.70965713,189.73,189.69,2.6395]
[1735628866884,7.70965713,189.73,189.7,2.6395]
[1735628875281,7.70965713,189.73,189.65,39.85379542]
[1735628875482,7.70965713,189.73,189.71,2.6393]
[1735628877888,10.34885713,189.73,189.68,2.6398]
[1735628878189,7.70965713,189.71,189.68,2.6398]
[1735628878683,7.70965713,189.69,189.66,28.92533829]
[1735628878880,7.70965713,189.69,189.66,7.24284667]
[1735628879686,10.34935713,189.69,189.65,4.2593]
[1735628879883,7.70965713,189.67,189.64,7.24284667]
[1735628880689,3.04,189.7,189.63,21.68249162]
[1735628880690,10.34995713,189.65,189.63,7.24284667]
[1735628880891,7.70965713,189.65,189.63,7.24284667]
[1735628881091,7.70965713,189.66,189.63,7.24284667]
[1735628881787,7.70965713,189.66,189.61,2.6407]
[1735628881992,7.70965713,189.66,189.62,2.6406]
[1735628882191,7.70965713,189.66,189.6,28.92533829]
[1735628882492,7.70965713,189.66,189.61,2.6407]
[1735628882692,7.70965713,189.64,189.61,2.6407]
[1735628883195,7.70965713,189.64,189.6,9.88374667]
[1735628883585,7.70965713,189.64,189.6,2.6409]
[1735628884794,7.70965713,189.64,189.61,2.6408]
[1735628884995,2.6401,189.66,189.61,2.6408]
[1735628885191,7.70965713,189.64,189.58,1.5557]
[1735628885396,7.70965713,189.66,189.59,7.70965713]
[1735628885801,7.70965713,189.66,189.63,2.6404]
[1735628886292,7.70965713,189.64,189.59,7.24284667]
[1735628886596,7.70965713,189.64,189.61,2.6408]
[1735628886797,7.70965713,189.64,189.59,7.24284667]
[1735628887292,7.70965713,189.64,189.62,2.6405]
[1735628888095,7.70965713,189.64,189.58,8.79854667]
[1735628888293,7.70965713,189.64,189.61,2.6408]
[1735628889297,7.70965713,189.64,189.58,8.79854667]
[1735628889498,7.70965713,189.64,189.62,2.6406]
[1735628890699,7.70965713,189.64,189.58,1.5557]
[1735628890901,3.04,189.7,189.58,1.5557]
[1735628891198,7.70965713,189.67,189.64,2.6402]
[1735628891397,7.70965713,189.67,189.61,7.70965713]
[1735628891594,12.73998322,189.79,189.63,7.70965713]
[1735628891795,7.70965713,189.7,189.68,2.6397]
[1735628895801,2.6397,189.69,189.64,2.6403]
[1735628895996,7.70965713,189.66,189.64,2.6403]
[1735628899505,7.70965713,189.66,189.59,1.5474]
[1735628899796,7.70965713,189.64,189.59,8.79024667]
[1735628900398,7.70965713,189.64,189.62,2.6406]
[1735628902597,7.70965713,189.64,189.61,2.6408]
[1735628905299,3.04,189.69,189.58,1.5557]
[1735628905504,5.6797,189.69,189.59,7.70965713]
[1735628905702,7.70965713,189.66,189.59,7.70965713]
[1735628906405,7.70965713,189.66,189.63,2.6404]
[1735628908711,7.70965713,189.64,189.61,2.6406]
[1735628910217,7.70965713,189.64,189.58,1.5557]
[1735628910812,7.70965713,189.64,189.62,2.6406]
[1735628915823,3.04,189.68,189.58,30.48103829]
[1735628916121,7.70965713,189.67,189.59,7.70965713]
[1735628917520,7.70965713,189.67,189.64,2.6403]
[1735628921224,7.70965713,189.66,189.64,2.6403]
[1735628924226,7.70965713,189.66,189.63,2.6405]
[1735628924823,7.70965713,189.66,189.61,2.6406]
[1735628925025,7.70965713,189.66,189.6,7.24284667]
[1735628925924,7.70965713,189.66,189.59,28.92533829]
[1735628926730,7.70965713,189.66,189.62,2.6405]
[1735628931319,7.70965713,189.66,189.61,28.92533829]
[1735628931320,7.70965713,189.64,189.61,28.92533829]
[1735628931926,7.70965713,189.64,189.61,7.24284667]
[1735628932130,7.70965713,189.62,189.61,7.24284667]
[1735628932734,7.70965713,189.64,189.61,9.88354667]
[1735628933034,7.70965713,189.62,189.58,8.79854667]
[1735628933828,7.70965713,189.62,189.59,52.21700252]
[1735628934630,7.70965713,189.62,189.6,2.6409]
[1735628934833,7.70965713,189.62,189.6,7.29923284]
[1735628935632,7.70965713,189.62,189.6,2.6409]
[1735628937230,7.70965713,189.62,189.61,2.6408]
[1735628937430,7.70965713,189.62,189.58,30.48103829]
[1735628938429,7.70965713,189.62,189.6,2.6409]
[1735628938830,7.70965713,189.62,189.59,4.65748587]
[1735628939031,7.70965713,189.62,189.59,7.29848587]
[1735628939235,7.70965713,189.62,189.58,1.5557]
[1735628939439,7.70965713,189.62,189.58,4.1968]
[1735628940035,7.70965713,189.62,189.59,2.641]
[1735628942337,7.70965713,189.6,189.57,7.24284667]
[1735628942526,7.70965713,189.58,189.57,7.24284667]
[1735628942730,7.70965713,189.58,189.57,9.88414667]
[1735628943133,7.70965713,189.6,189.57,9.88414667]
[1735628943335,7.70965713,189.6,189.57,2.6413]
[1735628944354,7.70965713,189.6,189.55,28.92533829]
[1735628944938,7.70965713,189.6,189.58,2.6411]
[1735628946336,5.6802,189.65,189.56,7.24284667]
[1735628946534,7.70965713,189.63,189.56,7.24284667]
[1735628947538,7.70965713,189.63,189.59,2.6409]
[1735628949838,7.70965713,189.61,189.57,2.6412]
[1735628951338,7.70965713,189.61,189.55,7.24284667]
[1735628952240,3.04,189.64,189.58,7.70965713]
[1735628952441,7.70965713,189.68,189.6,7.70965713]
[1735628953241,7.70965713,189.68,189.64,2.6403]
[1735628954137,7.70965713,189.68,189.6,7.70965713]
[1735628954332,7.70965713,189.68,189.62,7.70965713]
[1735628954936,7.70965713,189.68,189.62,9.26255713]
[1735628955835,7.70965713,189.68,189.65,2.6402]
[1735628961044,7.70965713,189.71,189.64,7.70965713]
[1735628961738,7.70965713,189.71,189.68,2.6397]
[1735628964845,2.6391,189.73,189.68,2.6397]
[1735628965041,7.70965713,189.71,189.68,2.6397]
[1735628967246,7.70965713,189.71,189.68,2.6398]
[1735628968251,7.70965713,189.71,189.66,2.6401]
[1735628969945,7.70965713,189.69,189.62,1.5529]
[1735628970155,7.70965713,189.67,189.62,1.5529]
[1735628970951,7.70965713,189.67,189.64,2.6403]
[1735628971153,7.70965713,189.67,189.62,1.5529]
[1735628971845,10.74965713,189.69,189.62,9.26255713]
[1735628972046,7.70965713,189.69,189.62,9.26255713]
[1735628972251,7.70965713,189.71,189.64,7.70965713]
[1735628972857,7.70965713,189.71,189.66,2.6401]
[1735628973156,7.70965713,189.71,189.64,7.70965713]
[1735628973552,7.70965713,189.71,189.67,2.6398]
[1735628973857,7.70965713,189.69,189.67,2.6398]
[1735628975250,7.70965713,189.69,189.63,3.04]
[1735628975555,7.70965713,189.69,189.62,9.26255713]
[1735628975953,7.70965713,189.69,189.64,2.6403]
[1735628976957,7.70965713,189.67,189.64,2.6403]
[1735628984363,7.70965713,189.67,189.62,1.5529]
[1735628984568,7.70965713,189.67,189.65,2.6402]
[1735628985161,3.04,189.73,189.65,2.6402]
[1735628985361,7.70965713,189.68,189.62,1.5529]
[1735628985566,7.70965713,189.68,189.66,2.64]
[1735628987766,7.70965713,189.7,189.63,7.70965713]
[1735628988267,7.70965713,189.72,189.65,7.70965713]
[1735628988467,7.70965713,189.72,189.68,2.6397]
[1735628989863,3.04,189.73,189.65,7.70965713]
[1735628990063,7.70965713,189.72,189.69,2.6397]
[1735628992371,2.639,189.74,189.69,2.6397]
[1735628992870,7.70965713,189.73,189.69,2.6397]
[1735628994973,7.70965713,189.71,189.69,2.6397]
[1735628995377,7.70965713,189.71,189.67,2.6399]
[1735628995679,10.34915713,189.71,189.66,7.24284667]
[1735628995870,10.34915713,189.71,189.65,7.24284667]
[1735628996175,7.70965713,189.71,189.67,2.6399]
[1735628998666,7.70965713,189.71,189.63,14.9525038]
[1735628998976,7.70965713,189.71,189.68,2.6398]
[1735628999775,2.6393,189.72,189.68,2.6398]
[1735628999978,7.70965713,189.7,189.68,2.6398]
[1735629001473,7.70965713,189.7,189.63,28.92533829]
[1735629001676,7.70965713,189.68,189.63,28.92533829]
[1735629002086,7.70965713,189.68,189.63,7.24284667]
[1735629002287,7.70965713,189.68,189.66,2.64]
[1735629008286,7.70965713,189.68,189.64,2.6402]
[1735629009590,7.70965713,189.68,189.65,2.6401]
[1735629010793,7.70965713,189.68,189.66,2.64]
[1735629010992,7.70965713,189.7,189.62,21.1247038]
[1735629011189,7.70965713,189.72,189.64,7.70965713]
[1735629011588,3.04,189.74,189.64,7.70965713]
[1735629011790,7.70965713,189.72,189.64,7.70965713]
[1735629012091,7.70965713,189.72,189.65,4.64200849]
[1735629012294,7.70965713,189.72,189.65,11.88485516]
[1735629012489,5.679,189.74,189.69,2.6395]
[1735629012796,5.679,189.74,189.65,11.88485516]
[1735629012797,7.70965713,189.74,189.66,7.70965713]
[1735629012996,7.70965713,189.74,189.66,12.35166562]
[1735629013887,7.70965713,189.74,189.66,14.9525038]
[1735629015387,7.70965713,189.74,189.7,2.6394]
[1735629016897,7.70965713,189.72,189.68,2.6397]
[1735629017191,7.70965713,189.69,189.67,2.6399]
[1735629017492,7.70965713,189.69,189.65,7.24284667]
[1735629018295,7.70965713,189.69,189.62,32.05753829]
[1735629018597,7.70965713,189.69,189.66,2.6401]
[1735629020792,3.04,189.71,189.66,2.6401]
[1735629020991,7.70965713,189.69,189.66,2.6401]
[1735629022297,7.70965713,189.69,189.67,2.6399]
[1735629023800,7.70965713,189.69,189.63,47.48045403]
[1735629023999,7.70965713,189.69,189.68,2.6398]
[1735629024602,7.70965713,189.71,189.69,2.6396]
[1735629025600,7.70965713,189.71,189.7,2.6395]
[1735629025995,2.6391,189.74,189.7,2.6395]
[1735629026300,7.70965713,189.73,189.71,2.6393]
[1735629027398,8.77011048,189.78,189.72,7.70965713]
[1735629027598,8.77011048,189.78,189.74,7.70965713]
[1735629027796,7.70965713,189.8,189.78,2.6384]
[1735629028399,7.70965713,189.8,189.76,2.6385]
[1735629028603,7.70965713,189.8,189.74,7.70965713]
[1735629029209,7.70965713,189.8,189.76,2.6386]
[1735629029407,7.70965713,189.78,189.72,7.24284667]
[1735629030003,7.70965713,189.78,189.73,2.6391]
[1735629030403,3.04,189.84,189.72,7.70965713]
[1735629030604,7.70965713,189.8,189.72,7.70965713]
[1735629030799,3.04,189.84,189.72,7.70965713]
[1735629031003,7.70965713,189.8,189.72,7.70965713]
[1735629031804,7.70965713,189.8,189.75,2.6387]
[1735629032109,7.70965713,189.8,189.73,7.70965713]
[1735629032511,7.70965713,189.8,189.75,2.6387]
[1735629033212,7.70965713,189.8,189.73,7.70965713]
[1735629035307,7.70965713,189.8,189.77,2.6384]
[1735629043509,2.638,189.81,189.77,2.6384]
[1735629043714,7.70965713,189.79,189.77,2.6384]
[1735629047416,7.70965713,189.79,189.74,2.6389]
[1735629048317,7.70965713,189.77,189.74,2.6389]
[1735629049212,7.70965713,189.77,189.73,2.6391]
[1735629050018,2.6387,189.76,189.72,4.187]
[1735629051119,10.34825713,189.77,189.72,4.187]
[1735629051416,2.6386,189.77,189.73,2.6391]
[1735629051612,10.34825713,189.77,189.73,2.6391]
[1735629054921,7.70965713,189.77,189.71,5.7392]
[1735629055122,7.70965713,189.73,189.67,11.90644667]
[1735629055622,7.70965713,189.73,189.69,2.6396]
[1735629056723,7.70965713,189.73,189.7,2.6395]
[1735629058418,7.70965713,189.73,189.67,1.6236]
[1735629058724,7.70965713,189.75,189.72,2.6392]
[1735629059219,7.70965713,189.75,189.68,7.70965713]
[1735629059419,7.70965713,189.75,189.71,2.6393]
[1735629060220,7.70965713,189.75,189.68,7.70965713]
[1735629060420,7.70965713,189.75,189.72,2.6392]
[1735629061325,7.70965713,189.75,189.73,2.6391]
[1735629061825,7.70965713,189.75,189.68,7.70965713]
[1735629062921,7.70965713,189.75,189.71,2.6393]
[1735629064019,10.34875713,189.73,189.69,2.6396]
[1735629066125,7.70965713,189.73,189.69,2.6396]
[1735629066321,2.639,189.74,189.69,2.6396]
[1735629066628,7.70965713,189.73,189.69,2.6396]
[1735629068818,10.74965713,189.75,189.72,2.6392]
[1735629070027,10.74965713,189.75,189.67,7.70965713]
[1735629070220,10.74965713,189.75,189.71,2.6393]
[1735629070421,10.74965713,189.75,189.67,7.70965713]
[1735629070929,13.38855713,189.75,189.7,2.6394]
[1735629071425,10.74965713,189.75,189.67,7.70965713]
[1735629072528,10.74965713,189.75,189.71,2.6393]
[1735629074329,7.70965713,189.75,189.71,2.6393]
[1735629077535,10.34845713,189.75,189.7,2.6395]
[1735629077732,7.70965713,189.73,189.7,2.6395]
[1735629078028,7.70965713,189.73,189.66,30.45183829]
[1735629078228,7.70965713,189.73,189.69,2.6396]
[1735629079630,7.70965713,189.73,189.7,2.6395]
[1735629080628,3.04,189.77,189.66,1.5265]
[1735629080629,7.70965713,189.71,189.66,1.5265]
[1735629080839,7.70965713,189.69,189.66,1.5265]
[1735629081150,7.70965713,189.69,189.65,28.92533829]
[1735629082233,7.70965713,189.69,189.63,9.20115713]
[1735629082840,7.70965713,189.69,189.66,2.64]
[1735629083740,5.6794,189.72,189.66,2.64]
[1735629083941,7.70965713,189.69,189.66,2.64]
[1735629084844,7.70965713,189.67,189.62,28.92533829]
[1735629085044,7.70965713,189.65,189.62,28.92533829]
[1735629085439,7.70965713,189.65,189.61,31.56593829]
[1735629085638,7.70965713,189.63,189.61,31.56593829]
[1735629086535,7.70965713,189.63,189.61,2.6406]
[1735629088544,7.70965713,189.63,189.57,14.9525038]
[1735629088733,7.70965713,189.63,189.61,2.6407]
[1735629089137,7.70965713,189.63,189.59,2.641]
[1735629090544,7.70965713,189.63,189.57,7.70965713]
[1735629090742,7.70965713,189.63,189.6,2.6409]
[1735629091144,3.04,189.67,189.57,7.70965713]
[1735629091343,7.70965713,189.64,189.61,2.6406]
[1735629091538,7.70965713,189.64,189.57,7.70965713]
[1735629091945,7.70965713,189.64,189.62,2.6405]
[1735629093136,7.70965713,189.64,189.57,7.70965713]
[1735629093541,7.70965713,189.64,189.56,7.70965713]
[1735629094146,7.70965713,189.64,189.59,2.6409]
[1735629094843,7.70965713,189.62,189.54,11.92184667]
[1735629095050,7.70965713,189.6,189.54,11.92184667]
[1735629096049,7.70965713,189.6,189.56,2.6413]
[1735629096947,7.70965713,189.6,189.57,2.6413]
[1735629097551,3.04,189.62,189.55,7.70965713]
[1735629097854,7.70965713,189.63,189.57,7.70965713]
[1735629098651,7.70965713,189.63,189.58,2.6411]
[1735629098851,7.70965713,189.63,189.57,7.70965713]
[1735629099358,7.70965713,189.63,189.6,2.6408]
[1735629101459,7.70965713,189.64,189.57,7.70965713]
[1735629101657,7.70965713,189.64,189.61,2.6407]
[1735629103958,2.6406,189.63,189.59,2.641]
[1735629104458,7.70965713,189.63,189.57,7.70965713]
[1735629105359,7.70965713,189.63,189.59,2.6409]
[1735629105561,7.70965713,189.63,189.54,4.679]
[1735629105756,3.04,189.65,189.57,2.6413]
[1735629105757,7.70965713,189.61,189.57,2.6413]
[1735629106259,10.35045713,189.61,189.54,12.38865713]
[1735629106459,7.70965713,189.61,189.58,2.6412]
[1735629106655,7.70965713,189.61,189.52,7.24284667]
[1735629106856,7.70965713,189.59,189.49,31.96533829]
[1735629107158,7.70965713,189.59,189.56,2.6414]
[1735629110061,3.04,189.6,189.56,2.6414]
[1735629110959,7.70965713,189.59,189.52,7.70965713]
[1735629111156,7.70965713,189.58,189.51,19.5578038]
[1735629111754,7.70965713,189.58,189.55,2.6415]
[1735629112455,3.04,189.6,189.55,2.6415]
[1735629112666,7.70965713,189.58,189.56,2.6414]
[1735629113357,3.04,189.6,189.56,2.6414]
[1735629113558,10.74965713,189.6,189.57,2.6412]
[1735629114458,3.04,189.61,189.58,2.6411]
[1735629114663,3.04,189.63,189.55,7.70965713]
[1735629114863,10.74965713,189.63,189.55,7.70965713]
[1735629115460,10.74965713,189.63,189.6,2.6409]
[1735629115966,3.04,189.63,189.61,2.6407]
[1735629118667,7.70965713,189.65,189.61,2.6407]
[1735629118863,10.74965713,189.65,189.61,2.6407]
[1735629119369,7.70965713,189.63,189.61,2.6407]
[1735629120069,7.70965713,189.63,189.6,2.6409]
[1735629122564,7.70965713,189.63,189.57,10.24184667]
[1735629122762,7.70965713,189.61,189.59,2.641]
[1735629124072,7.70965713,189.61,189.57,2.999]
[1735629124271,7.70965713,189.63,189.6,2.6409]
[1735629125365,7.70965713,189.63,189.61,2.6407]
[1735629125566,7.70965713,189.67,189.6,7.70965713]
[1735629125770,7.70965713,189.69,189.62,7.70965713]
[1735629126577,7.70965713,189.69,189.64,2.6403]
[1735629126770,7.70965713,189.69,189.62,7.70965713]
[1735629128365,7.70965713,189.69,189.64,2.6403]
[1735629130175,7.70965713,189.67,189.61,7.70965713]
[1735629130475,7.70965713,189.67,189.63,2.6405]
[1735629130878,7.70965713,189.67,189.64,2.6402]
[1735629131478,7.70965713,189.69,189.64,2.6402]
[1735629131678,7.70965713,189.69,189.65,2.6401]
[1735629132972,7.70965713,189.69,189.64,2.6403]
[1735629133180,7.70965713,189.67,189.59,7.70965713]
[1735629133482,7.70965713,189.63,189.58,4.6713]
[1735629133771,7.70965713,189.63,189.58,1.6313]
[1735629133973,7.70965713,189.65,189.58,9.34095713]
[1735629134680,7.70965713,189.65,189.6,2.6409]
[1735629135983,7.70965713,189.65,189.61,2.6407]
[1735629141482,7.70965713,189.65,189.58,9.34095713]
[1735629141987,7.70965713,189.65,189.64,2.6403]
[1735629142182,3.04,189.66,189.64,2.6403]
[1735629142982,8.76799368,189.79,189.6,7.70965713]
[1735629142983,10.87718019,189.78,189.6,7.70965713]
[1735629143287,7.70965713,189.68,189.6,7.70965713]
[1735629143692,7.70965713,189.68,189.64,2.6403]
[1735629144186,7.70965713,189.68,189.59,14.9525038]
[1735629144685,10.34945713,189.68,189.63,2.6405]
[1735629144887,7.70965713,189.68,189.59,7.70965713]
[1735629145788,7.70965713,189.68,189.63,2.6404]
[1735629146177,7.70965713,189.68,189.64,2.6403]
[1735629148392,7.70965713,189.68,189.61,7.70965713]
[1735629148393,7.70965713,189.66,189.62,2.6405]
[1735629152203,7.70965713,189.68,189.59,14.9525038]
[1735629153305,7.70965713,189.68,189.64,2.6403]
[1735629154500,7.70965713,189.68,189.6,11.8942115]
[1735629154705,7.70965713,189.68,189.65,2.6402]
[1735629156004,7.70965713,189.68,189.66,2.6401]
[1735629157507,2.6394,189.72,189.67,2.6399]
[1735629157703,5.6794,189.72,189.63,7.70965713]
[1735629157907,7.70965713,189.71,189.64,3.1757]
[1735629158105,7.70965713,189.71,189.7,2.6395]
[1735629159408,3.96187498,189.75,189.7,2.6395]
[1735629159608,7.70965713,189.73,189.7,2.6395]
[1735629162307,7.70965713,189.73,189.71,2.6394]
[1735629162701,10.74965713,189.75,189.67,7.70965713]
[1735629163305,3.04,189.75,189.67,7.70965713]
[1735629163504,10.74965713,189.75,189.67,7.70965713]
[1735629164106,3.04,189.75,189.67,7.70965713]
[1735629164310,10.74965713,189.75,189.67,7.70965713]
[1735629164510,7.70965713,189.75,189.67,7.70965713]
[1735629165015,7.70965713,189.75,189.72,2.6392]
[1735629165406,3.04,189.77,189.72,2.6392]
[1735629165609,7.70965713,189.74,189.72,2.6392]
[1735629169313,7.70965713,189.74,189.67,7.70965713]
[1735629169517,7.70965713,189.72,189.65,9.28945713]
[1735629170515,7.70965713,189.72,189.69,2.6396]
[1735629170918,7.70965713,189.72,189.65,9.28945713]
[1735629171418,3.04,189.77,189.65,1.5798]
[1735629171419,7.70965713,189.7,189.65,1.5798]
[1735629172418,7.70965713,189.7,189.66,2.6399]
[1735629173216,7.70965713,189.7,189.65,1.5798]
[1735629173420,7.70965713,189.7,189.67,2.6399]
[1735629179033,13.38895713,189.72,189.65,9.28945713]
[1735629179333,13.38895713,189.72,189.68,2.6398]
[1735629179924,7.70965713,189.73,189.69,2.6396]
[1735629180932,7.70965713,189.73,189.7,2.6395]
[1735629183733,7.70965713,189.73,189.71,2.6393]
[1735629184933,10.74965713,189.75,189.72,2.6392]
[1735629186239,7.70965713,189.75,189.72,2.6392]
[1735629192038,7.70965713,189.75,189.73,2.6391]
[1735629199248,7.70965713,189.75,189.71,2.6392]
[1735629199444,10.34845713,189.75,189.71,2.6392]
[1735629200240,10.34845713,189.75,189.67,14.9525038]
[1735629200442,7.70965713,189.75,189.67,7.24284667]
[1735629200647,3.04,189.77,189.68,7.70965713]
[1735629200846,7.70965713,189.76,189.68,7.70965713]
[1735629201349,7.70965713,189.78,189.7,7.70965713]
[1735629201548,7.70965713,189.78,189.67,7.24284667]
[1735629201549,7.70965713,189.8,189.72,7.70965713]
[1735629201947,7.70965713,189.8,189.72,9.23595713]
[1735629203355,7.70965713,189.8,189.76,2.6386]
[1735629203753,7.70965713,189.78,189.76,2.6386]
[1735629208257,2.6376,189.84,189.8,2.638]
[1735629209758,10.34715713,189.85,189.8,2.638]
[1735629211359,2.6376,189.84,189.8,2.638]
[1735629213057,7.70965713,189.83,189.8,2.638]
[1735629220272,7.70965713,189.81,189.77,1.498]
[1735629220465,10.34765713,189.81,189.77,4.1365]
[1735629220959,10.34765713,189.81,189.77,1.498]
[1735629222170,2.6381,189.8,189.77,1.498]
[1735629222666,2.6383,189.79,189.75,2.6388]
[1735629223069,7.70965713,189.79,189.72,3.0054]
[1735629223369,7.70965713,189.79,189.72,10.71505713]
[1735629224064,7.70965713,189.79,189.73,2.639]
[1735629224065,2.6384,189.78,189.73,2.639]
[1735629224871,7.70965713,189.77,189.73,2.639]
[1735629225066,7.70965713,189.75,189.7,2.6394]
[1735629225272,7.70965713,189.73,189.68,28.92533829]
[1735629225472,7.70965713,189.71,189.68,28.92533829]
[1735629226872,7.70965713,189.71,189.66,4.4371]
[1735629227465,3.04,189.75,189.66,1.4791]
[1735629227466,7.70965713,189.69,189.66,1.4791]
[1735629227774,7.70965713,189.69,189.62,7.70965713]
[1735629229266,7.70965713,189.67,189.6,11.85824667]
[1735629229467,7.70965713,189.67,189.6,4.6154]
[1735629230077,7.70965713,189.67,189.61,7.70965713]
[1735629230376,7.70965713,189.69,189.61,7.70965713]
[1735629231577,7.70965713,189.69,189.65,2.6401]
[1735629235075,7.70965713,189.69,189.64,2.6403]
[1735629235076,7.70965713,189.67,189.64,2.6403]
[1735629238886,7.70965713,189.69,189.6,12.32505713]
[1735629239684,10.34935713,189.69,189.6,12.32505713]
[1735629240286,10.34935713,189.69,189.63,2.6404]
[1735629240787,10.34935713,189.69,189.6,12.32505713]
[1735629241087,10.34935713,189.69,189.64,2.6403]
[1735629241385,7.70965713,189.67,189.6,12.32505713]
[1735629241984,7.70965713,189.67,189.63,2.6405]
[1735629242587,7.70965713,189.67,189.6,12.32505713]
[1735629243294,7.70965713,189.67,189.64,2.6403]
[1735629244785,7.70965713,189.69,189.62,7.70965713]
[1735629245690,7.70965713,189.69,189.64,2.6403]
[1735629245885,7.70965713,189.69,189.62,7.70965713]
[1735629247392,7.70965713,189.69,189.66,2.6399]
[1735629247885,7.70965713,189.69,189.62,7.70965713]
[1735629248090,7.70965713,189.69,189.68,2.6398]
[1735629248391,7.70965713,189.72,189.64,7.70965713]
[1735629248590,3.04,189.74,189.66,7.70965713]
[1735629248791,3.04,189.77,189.67,1.6226]
[1735629248995,7.70965713,189.74,189.68,7.70965713]
[1735629249789,7.70965713,189.74,189.68,9.33255713]
[1735629249991,3.04,189.78,189.73,2.6391]
[1735629250183,2.6384,189.79,189.73,2.6391]
[1735629250387,7.70965713,189.77,189.73,2.6391]
[1735629254395,7.70965713,189.75,189.73,2.6391]
[1735629255690,7.70965713,189.75,189.69,1.4686]
[1735629255895,7.70965713,189.73,189.68,1.6229]
[1735629257388,7.70965713,189.73,189.7,2.6395]
[1735629261699,7.70965713,189.73,189.68,4.2626]
[1735629261896,7.70965713,189.73,189.68,1.6229]
[1735629263002,7.70965713,189.73,189.69,2.6395]
[1735629264001,7.70965713,189.73,189.7,2.6395]
[1735629270097,1.0546,189.8,189.68,9.33255713]